bitfinex-derivatives/quotes_SOLF0:USTF0_20251115
["timestamp","ask_amount","ask_price","bid_price","bid_amount"]
[1763179616458,0.04495666,142.32,142.28,3.13]
[1763179622962,0.00495666,142.32,142.28,3.13]
[1763179623265,2.53550694,142.37,142.29,3.13]
[1763179624157,5.07823907,142.39,142.33,3.06]
[1763179624158,5.31724019,142.39,142.33,3.06]
[1763179624362,2.53550694,142.4,142.33,3.06]
[1763179624875,7.85274713,142.4,142.33,3.06]
[1763179625170,0.0524949,142.38,142.36,3.06]
[1763179626160,2.58800184,142.38,142.35,0.04950978]
[1763179626369,0.0524949,142.38,142.35,3.10950978]
[1763179629568,2.58800184,142.38,142.35,3.10950978]
[1763179630164,2.58800184,142.38,142.35,0.04950978]
[1763179630868,2.58800184,142.38,142.35,3.11950978]
[1763179632674,2.53550694,142.36,142.35,0.04950978]
[1763179634773,6.47101388,142.36,142.28,3.07]
[1763179635077,2.53550694,142.32,142.28,3.07]
[1763179635269,2.53550694,142.34,142.28,3.07]
[1763179635976,0.05167376,142.32,142.31,3.07]
[1763179636577,2.5871807,142.32,142.3,0.04874834]
[1763179636972,5.12268764,142.32,142.3,0.04874834]
[1763179638373,5.12268764,142.32,142.25,3.07]
[1763179638573,2.53550694,142.28,142.25,3.07]
[1763179639374,2.58604146,142.28,142.25,3.12389595]
[1763179640983,0.05053452,142.28,142.25,3.12389595]
[1763179641183,8.69183435,142.38,142.26,3.07]
[1763179641184,1.6245225,142.29,142.26,3.07]
[1763179641682,1.6245225,142.27,142.16,3.07]
[1763179641987,1.6245225,142.27,142.15,419.22347812]
[1763179641988,1.6245225,142.27,142.21,3.07]
[1763179642182,0.04470387,142.25,142.24,3.07]
[1763179642387,1.6245225,142.28,142.24,3.07]
[1763179642691,1.6245225,142.28,142.25,3.07]
[1763179643380,1.67326729,142.28,142.25,3.1153185]
[1763179645078,0.04874479,142.28,142.25,3.1153185]
[1763179656992,10.38424234,142.36,142.27,3.23]
[1763179657198,1.6245225,142.35,142.29,3.23]
[1763179657989,0.04885351,142.33,142.29,3.23]
[1763179658195,0.04885351,142.33,142.32,3.23]
[1763179664194,0.04885351,142.33,142.31,0.05079369]
[1763179664401,0.04885351,142.33,142.31,3.28079369]
[1763179666601,0.04885351,142.33,142.31,0.05079369]
[1763179666804,0.04885351,142.33,142.31,3.28079369]
[1763179670699,0.04885351,142.33,142.31,0.05079369]
[1763179672198,0.04885351,142.33,142.31,3.28079369]
[1763179676102,0.04885351,142.33,142.31,0.05079369]
[1763179676305,0.04885351,142.33,142.31,3.28079369]
[1763179679507,0.04885351,142.33,142.31,0.05079369]
[1763179680406,0.04885351,142.33,142.31,3.28079369]
[1763179681497,0.04885351,142.33,142.31,0.05079369]
[1763179681908,0.04885351,142.33,142.31,3.28079369]
[1763179687314,0.04885351,142.33,142.31,0.05079369]
[1763179687508,1.67337601,142.33,142.31,0.05079369]
[1763179688811,10.39670791,142.32,142.29,3.06]
[1763179689016,1.67337601,142.33,142.29,3.06]
[1763179689219,10.39726525,142.32,142.29,3.06]
[1763179689411,1.67337601,142.33,142.29,3.06]
[1763179689611,10.39758037,142.32,142.29,3.06]
[1763179689813,1.67337601,142.33,142.29,3.10850021]
[1763179690008,10.39757568,142.32,142.29,3.10850021]
[1763179690216,5.06756779,142.31,142.29,3.10850021]
[1763179690415,1.67337601,142.33,142.29,3.10850021]
[1763179690616,10.39632556,142.32,142.29,3.10850021]
[1763179690815,10.39632556,142.31,142.29,0.04850021]
[1763179691113,1.67337601,142.33,142.29,0.04850021]
[1763179691416,10.39681987,142.32,142.29,0.04850021]
[1763179691616,12.02134237,142.31,142.29,0.04850021]
[1763179691819,1.6245225,142.31,142.29,0.04850021]
[1763179692815,10.39309955,142.3,142.29,0.04850021]
[1763179694921,10.39309955,142.3,142.25,3.05]
[1763179695113,6.69049466,142.29,142.25,3.05]
[1763179695314,1.6245225,142.29,142.25,3.05]
[1763179696023,0.04796267,142.28,142.26,0.05243802]
[1763179698221,1.6245225,142.27,142.26,0.05243802]
[1763179703030,2.5388679,142.27,142.26,0.05243802]
[1763179703828,0.04796267,142.28,142.26,0.05243802]
[1763179704028,2.58683057,142.28,142.26,3.10243802]
[1763179704228,0.04796267,142.28,142.26,3.10243802]
[1763179713529,0.04796267,142.28,142.26,0.05243802]
[1763179713924,0.04796267,142.28,142.26,3.10243802]
[1763179729143,2.5388679,142.33,142.26,3.10243802]
[1763179729347,10.42088813,142.32,142.26,3.05]
[1763179729648,2.5388679,142.29,142.24,3.05]
[1763179729843,5.08734466,142.28,142.24,3.05]
[1763179730039,0.05218851,142.27,142.25,3.10408376]
[1763179730240,0.05218851,142.27,142.25,3.09888458]
[1763179734051,2.59105641,142.27,142.25,3.09888458]
[1763179736454,5.42218742,142.26,142.25,3.09888458]
[1763179737351,6.48955579,142.29,142.25,4.49888458]
[1763179737550,6.48955579,142.33,142.26,3.05]
[1763179737750,5.09161696,142.32,142.26,3.05]
[1763179737951,2.5388679,142.34,142.26,3.05]
[1763179738254,5.09161592,142.33,142.26,3.05]
[1763179738456,0.0500597,142.31,142.29,3.05]
[1763179738749,2.5388679,142.34,142.29,3.05]
[1763179738946,5.08872761,142.33,142.29,3.05]
[1763179739144,5.08872761,142.32,142.29,3.05]
[1763179739349,9.02842369,142.36,142.29,3.05]
[1763179739548,5.08633714,142.35,142.29,3.05]
[1763179739756,0.04691566,142.33,142.32,3.05]
[1763179739953,5.1332528,142.33,142.32,3.05]
[1763179741154,0.04691566,142.33,142.32,3.05]
[1763179743253,2.58578356,142.33,142.32,3.05]
[1763179743854,2.58578356,142.33,142.31,0.05159525]
[1763179750766,2.5388679,142.32,142.31,0.05159525]
[1763179756863,2.58578356,142.33,142.31,0.05159525]
[1763179762973,1.62389249,142.32,142.31,0.05159525]
[1763179770790,1.62389249,142.32,142.31,3.27159525]
[1763179771789,0.04691566,142.33,142.31,3.27159525]
[1763179772991,1.62389249,142.36,142.31,3.27159525]
[1763179773191,1.62389249,142.36,142.31,3.22]
[1763179773792,1.62389249,142.37,142.31,3.22]
[1763179773988,0.05301442,142.35,142.33,0.05391859]
[1763179774190,1.62389249,142.38,142.34,3.04]
[1763179774389,1.62389249,142.38,142.35,0.05351378]
[1763179774595,0.05371445,142.37,142.36,3.04]
[1763179781300,1.67760694,142.37,142.35,0.05351378]
[1763179782708,1.67760694,142.37,142.35,3.09351378]
[1763179788413,0.05371445,142.37,142.35,3.09351378]
[1763179788613,1.67760694,142.37,142.35,3.09351378]
[1763179789708,1.67760694,142.37,142.35,0.05351378]
[1763179790114,1.67760694,142.37,142.35,3.09351378]
[1763179801126,1.67760694,142.37,142.35,0.05351378]
[1763179801722,1.67760694,142.37,142.35,3.09351378]
[1763179804927,6.84311525,142.41,142.35,3.09351378]
[1763179805126,11.92303922,142.43,142.37,1.62389249]
[1763179805329,1.62389249,142.43,142.38,3.37]
[1763179806031,0.04484865,142.42,142.4,3.37]
[1763179809835,6.69882887,142.47,142.4,3.37]
[1763179810027,1.62389249,142.47,142.4,3.37]
[1763179810223,6.69846651,142.47,142.42,3.37]
[1763179810532,1.62389249,142.47,142.42,3.37]
[1763179810733,0.05187922,142.46,142.44,3.09]
[1763179817242,1.62389249,142.45,142.44,3.09]
[1763179820238,1.62389249,142.45,142.43,0.05234687]
[1763179824942,5.06652494,142.44,142.43,0.05234687]
[1763179825942,2.53326247,142.44,142.43,0.05234687]
[1763179827737,2.53326247,142.44,142.43,3.14234687]
[1763179828350,2.53326247,142.44,142.43,0.05234687]
[1763179830050,5.06652494,142.44,142.38,3.09]
[1763179830245,2.53326247,142.4,142.35,3.09]
[1763179830449,2.53326247,142.38,142.35,3.09]
[1763179830951,2.57976757,142.38,142.35,3.14355362]
[1763179833152,2.53326247,142.36,142.35,3.14355362]
[1763179833353,2.57976757,142.38,142.35,0.05355362]
[1763179833744,2.57976757,142.38,142.35,3.15355362]
[1763179834441,2.53326247,142.36,142.35,0.05355362]
[1763179835052,5.06652494,142.36,142.35,0.05355362]
[1763179835255,5.06652494,142.36,142.24,2.53326247]
[1763179835550,2.53326247,142.34,142.25,3.1]
[1763179836248,2.53326247,142.32,142.25,3.1]
[1763179836452,0.04954584,142.31,142.29,3.1]
[1763179839656,0.04954584,142.31,142.28,0.04984995]
[1763179839856,0.04954584,142.31,142.28,3.14984995]
[1763179844655,2.53326247,142.37,142.3,3.1]
[1763179845258,2.53326247,142.4,142.3,5.63326247]
[1763179845448,2.53326247,142.4,142.31,3.1]
[1763179845652,0.04937259,142.37,142.35,3.1]
[1763179860469,7.75686878,142.44,142.35,3.1]
[1763179860664,2.53326247,142.41,142.35,3.1]
[1763179861563,0.04644614,142.39,142.38,3.1]
[1763179872671,2.53326247,142.46,142.39,3.22]
[1763179872876,5.44744102,142.45,142.39,3.22]
[1763179873176,5.44630001,142.45,142.39,3.22]
[1763179873478,0.04974502,142.43,142.42,3.22]
[1763179874076,2.53326247,142.47,142.42,3.22]
[1763179874881,2.53326247,142.48,142.42,3.22]
[1763179875077,0.05244473,142.46,142.42,3.22]
[1763179876372,0.00244473,142.46,142.42,3.22]
[1763179878982,2.53326247,142.52,142.43,3.22]
[1763179879877,0.05094298,142.49,142.47,3.22]
[1763179881383,2.53326247,142.54,142.47,3.22]
[1763179882471,0.05369179,142.52,142.5,3.22]
[1763179884484,0.00369179,142.52,142.5,3.22]
[1763179887084,1.62233732,142.52,142.5,3.22]
[1763179888783,0.00369179,142.52,142.5,3.22]
[1763179889178,1.62233732,142.52,142.5,3.22]
[1763179891284,1.62233732,142.52,142.49,0.04627145]
[1763179891482,1.61864553,142.5,142.49,0.04627145]
[1763179891882,1.61864553,142.5,142.46,3.22]
[1763179892084,1.61864553,142.47,142.46,3.22]
[1763179892278,1.61864553,142.47,142.31,21.1]
[1763179892279,1.61864553,142.47,142.44,3.22]
[1763179892984,1.66841018,142.47,142.44,3.26676079]
[1763179894184,1.61864553,142.45,142.44,0.04676079]
[1763179895584,1.61864553,142.45,142.28,84.24]
[1763179895585,3.01864553,142.45,142.39,3.16]
[1763179895891,1.61864553,142.4,142.33,3.16]
[1763179896186,1.61864553,142.38,142.33,3.16]
[1763179896375,6.46147569,142.48,142.35,3.16]
[1763179896376,0.05067091,142.37,142.35,3.16]
[1763179896582,0.05146339,142.37,142.35,3.20950555]
[1763179897888,1.61864553,142.4,142.36,3.16]
[1763179898687,1.61864553,142.42,142.36,3.16]
[1763179898887,0.04727842,142.4,142.39,3.16]
[1763179906099,1.61864553,142.42,142.39,3.16]
[1763179906293,5.02121639,142.5,142.39,3.16]
[1763179906294,1.61864553,142.44,142.39,3.16]
[1763179906998,1.61864553,142.42,142.39,3.16]
[1763179907294,1.61864553,142.42,142.4,3.16]
[1763179914697,1.61864553,142.44,142.4,3.16]
[1763179914902,1.61864553,142.44,142.42,3.16]
[1763179915600,1.61864553,142.46,142.42,3.16]
[1763179915800,1.61864553,142.46,142.44,3.16]
[1763179916905,5.42936015,142.51,142.44,3.16]
[1763179917102,1.61864553,142.46,142.44,3.16]
[1763179917303,1.61864553,142.46,142.44,3.21067354]
[1763179929215,1.61864553,142.48,142.44,3.21067354]
[1763179929513,1.61864553,142.48,142.46,3.12]
[1763179929713,1.61864553,142.48,142.46,3.17380152]
[1763179931013,1.61864553,142.5,142.46,3.17380152]
[1763179931216,1.61864553,142.5,142.48,3.28]
[1763179931416,1.61864553,142.5,142.48,3.32657364]
[1763179933617,10.44152304,142.55,142.48,3.32657364]
[1763179933812,1.61864553,142.51,142.5,0.04914874]
[1763179934210,1.61864553,142.51,142.5,3.32914874]
[1763179940610,1.61864553,142.51,142.5,0.04914874]
[1763179946822,2.53081497,142.51,142.5,0.04914874]
[1763179952727,2.53081497,142.52,142.5,0.04914874]
[1763179958527,5.06162994,142.52,142.5,0.04914874]
[1763179960738,5.43569881,142.51,142.5,0.04914874]
[1763179962136,2.53081497,142.52,142.5,0.04914874]
[1763179970145,10.41555612,142.51,142.44,3.13]
[1763179970344,2.53081497,142.49,142.44,3.13]
[1763179971255,0.05270028,142.48,142.46,3.13]
[1763179987264,2.53081497,142.54,142.46,3.13]
[1763179987458,10.31073865,142.53,142.46,3.13]
[1763179987657,2.53081497,142.54,142.46,3.13]
[1763179987856,10.31073865,142.53,142.46,3.13]
[1763179988068,2.53081497,142.54,142.46,3.13]
[1763179988368,2.53081497,142.54,142.5,3.11]
[1763179988369,10.31058501,142.53,142.5,3.11]
[1763179988567,2.53081497,142.54,142.5,3.11]
[1763179988863,10.31040325,142.53,142.49,3.16218207]
[1763179989165,2.53081497,142.54,142.49,3.16218207]
[1763179989166,10.31040325,142.52,142.49,3.16218207]
[1763179989366,2.53081497,142.54,142.49,3.16218207]
[1763179989563,10.31059126,142.53,142.49,3.16218207]
[1763179989764,10.31059126,142.52,142.49,3.16218207]
[1763179989967,2.53081497,142.54,142.49,3.16218207]
[1763179990264,10.31291977,142.53,142.49,3.16218207]
[1763179990565,10.31291977,142.52,142.49,3.16218207]
[1763179990767,2.53081497,142.54,142.49,3.16218207]
[1763179990966,10.3122453,142.53,142.49,3.16218207]
[1763179991166,10.3122453,142.52,142.49,3.16218207]
[1763179991369,5.04217659,142.51,142.49,0.05218207]
[1763179991571,2.53081497,142.52,142.49,0.05218207]
[1763179991769,5.04228159,142.51,142.49,0.05218207]
[1763179991969,2.53081497,142.52,142.49,0.05218207]
[1763179992168,5.04228386,142.51,142.49,0.05218207]
[1763179992376,12.84161075,142.5,142.49,0.05218207]
[1763179993067,12.84161075,142.5,142.45,3.05]
[1763179993267,2.53081497,142.5,142.45,3.05]
[1763179994073,0.0500265,142.49,142.46,3.10183803]
[1763179995769,0.0500265,142.49,142.46,0.05183803]
[1763179996468,0.0500265,142.49,142.46,3.10183803]
[1763180013091,8.08105598,142.55,142.48,3.05]
[1763180013286,5.08713145,142.54,142.48,3.05]
[1763180013590,5.08713145,142.53,142.48,3.05]
[1763180013890,5.08713145,142.52,142.48,3.05]
[1763180014191,5.08713145,142.51,142.5,3.24]
[1763180015193,8.08105598,142.55,142.5,3.24]
[1763180015387,5.084517,142.54,142.5,3.24]
[1763180015691,5.084517,142.53,142.5,3.24]
[1763180015891,5.084517,142.52,142.5,3.24]
[1763180016092,8.08105598,142.55,142.5,3.24]
[1763180016288,5.08437104,142.54,142.5,3.24]
[1763180016588,5.08437104,142.53,142.5,3.24]
[1763180016789,5.08437104,142.52,142.5,3.24]
[1763180016984,1.61958029,142.55,142.5,3.24]
[1763180017181,5.0790639,142.54,142.5,3.24]
[1763180017379,5.0790639,142.53,142.5,3.24]
[1763180017589,5.0790639,142.52,142.5,3.24]
[1763180017780,1.61958029,142.55,142.5,3.24]
[1763180017982,5.07963453,142.54,142.5,3.24]
[1763180018183,5.07963453,142.53,142.5,3.24]
[1763180018388,5.07963453,142.52,142.5,3.24]
[1763180018592,1.61958029,142.55,142.5,3.24]
[1763180018780,5.07951897,142.54,142.5,3.24]
[1763180018981,5.07951897,142.53,142.5,3.24]
[1763180019293,5.07951897,142.52,142.5,3.24]
[1763180019491,1.61958029,142.55,142.5,3.24]
[1763180019693,5.08139802,142.54,142.5,3.24]
[1763180019893,5.08139802,142.53,142.5,3.24]
[1763180020094,5.08139802,142.52,142.5,3.24]
[1763180020294,8.08105598,142.55,142.5,3.24]
[1763180020490,5.08169038,142.54,142.5,3.24]
[1763180020795,5.08169038,142.53,142.5,3.24]
[1763180020993,5.08169038,142.52,142.5,3.24]
[1763180021195,8.08105598,142.55,142.5,3.24]
[1763180021395,5.08181442,142.54,142.5,3.24]
[1763180021597,5.08181442,142.53,142.5,3.24]
[1763180021798,5.08181442,142.52,142.5,3.24]
[1763180021994,8.08105598,142.55,142.5,3.24]
[1763180022197,5.08181671,142.54,142.5,3.24]
[1763180022498,5.08181671,142.53,142.5,3.24]
[1763180022696,5.08181671,142.52,142.5,3.24]
[1763180022896,1.61958029,142.55,142.5,3.24]
[1763180023197,5.08260469,142.54,142.5,3.24]
[1763180023397,5.08260469,142.53,142.5,3.24]
[1763180023695,5.08260469,142.52,142.5,3.24]
[1763180023896,1.61958029,142.55,142.5,3.24]
[1763180024097,5.08279019,142.54,142.5,3.24]
[1763180024294,5.08279019,142.53,142.5,3.24]
[1763180024494,5.08279019,142.52,142.5,3.24]
[1763180024696,8.08105598,142.55,142.5,3.24]
[1763180024895,5.06594736,142.54,142.5,3.24]
[1763180025096,8.08105598,142.55,142.5,3.24]
[1763180025097,10.32165785,142.53,142.5,3.24]
[1763180025398,10.32165785,142.52,142.5,3.24]
[1763180025594,8.08105598,142.55,142.5,3.24]
[1763180025797,10.31817195,142.54,142.5,3.24]
[1763180025994,10.31817195,142.53,142.5,3.24]
[1763180026289,10.31817195,142.52,142.5,3.24]
[1763180026493,8.08105598,142.55,142.5,3.24]
[1763180026798,10.31796428,142.54,142.5,3.24]
[1763180026999,10.31796428,142.53,142.5,3.24]
[1763180027198,10.31796428,142.52,142.5,3.24]
[1763180027389,8.08105598,142.55,142.5,3.24]
[1763180027593,10.31468829,142.54,142.5,3.24]
[1763180027788,10.31468829,142.53,142.5,3.24]
[1763180027988,10.31468829,142.52,142.5,3.24]
[1763180028198,8.08105598,142.55,142.5,3.24]
[1763180028399,10.31403445,142.54,142.5,3.24]
[1763180028594,10.31403445,142.53,142.5,3.24]
[1763180028800,1.61958029,142.55,142.5,3.24]
[1763180029000,10.31478952,142.54,142.5,3.24]
[1763180029199,10.31478952,142.53,142.5,3.24]
[1763180029500,1.61958029,142.55,142.5,3.24]
[1763180029693,10.31413204,142.54,142.5,3.24]
[1763180029897,10.31413204,142.53,142.5,3.24]
[1763180030097,1.61958029,142.55,142.5,3.24]
[1763180030300,10.31374456,142.54,142.5,3.24]
[1763180030500,10.31374456,142.53,142.5,3.24]
[1763180030699,1.61958029,142.55,142.5,3.24]
[1763180030900,10.31318991,142.54,142.5,3.24]
[1763180031101,5.06156697,142.53,142.5,3.24]
[1763180031398,1.61958029,142.55,142.5,3.24]
[1763180031599,10.31396504,142.54,142.5,3.24]
[1763180031901,5.06199931,142.53,142.5,3.24]
[1763180032203,1.61958029,142.55,142.5,3.24]
[1763180032391,10.31326644,142.54,142.5,3.24]
[1763180032592,5.06161244,142.53,142.5,3.24]
[1763180032796,1.61958029,142.55,142.5,3.24]
[1763180033003,10.31326644,142.54,142.5,3.24]
[1763180033201,5.06161244,142.53,142.5,3.24]
[1763180033401,1.61958029,142.55,142.5,3.24]
[1763180033710,1.61958029,142.58,142.51,3.24]
[1763180033898,10.3145739,142.57,142.54,3.24]
[1763180034093,10.3145739,142.56,142.54,3.24]
[1763180034397,1.61958029,142.58,142.54,3.24]
[1763180034398,5.06211951,142.55,142.54,3.24]
[1763180034893,5.17614826,142.57,142.54,3.24]
[1763180035099,10.14543383,142.56,142.54,3.24]
[1763180035299,5.16688907,142.57,142.54,3.24]
[1763180035495,10.13509706,142.56,142.54,3.24]
[1763180035699,5.16688907,142.57,142.54,3.24]
[1763180035899,10.13543534,142.56,142.54,3.24]
[1763180036100,5.16688907,142.57,142.54,3.24]
[1763180036301,10.13444808,142.56,142.54,3.24]
[1763180036502,5.16688907,142.57,142.54,3.24]
[1763180036702,10.1334852,142.56,142.54,3.24]
[1763180036903,5.16688907,142.57,142.54,3.24]
[1763180037106,10.13334042,142.56,142.54,3.24]
[1763180037405,5.16688907,142.57,142.54,3.24]
[1763180037706,10.13235184,142.56,142.54,3.24]
[1763180037904,5.16688907,142.57,142.54,3.24]
[1763180038098,10.13235184,142.56,142.54,3.24]
[1763180038300,5.16688907,142.57,142.54,3.24]
[1763180038595,10.13180958,142.56,142.54,3.24]
[1763180038799,10.13176862,142.57,142.54,3.24]
[1763180038999,5.16688907,142.57,142.54,3.24]
[1763180039498,5.16688907,142.59,142.55,3.24]
[1763180039703,1.61958029,142.61,142.57,3.24]
[1763180040006,10.12909413,142.6,142.57,3.24]
[1763180040204,10.12909413,142.59,142.57,3.24]
[1763180040406,5.1643833,142.6,142.57,3.24]
[1763180040603,10.12847699,142.59,142.57,3.24]
[1763180040797,10.12821468,142.6,142.57,3.24]
[1763180040997,10.12816214,142.62,142.57,3.24]
[1763180041208,10.12816214,142.61,142.57,3.24]
[1763180041504,5.1643833,142.6,142.57,3.24]
[1763180041704,10.12523062,142.62,142.57,3.24]
[1763180041905,10.12523062,142.61,142.57,3.24]
[1763180042107,1.61958029,142.63,142.57,3.24]
[1763180042405,10.12493661,142.62,142.57,3.24]
[1763180042702,10.12493661,142.61,142.57,3.24]
[1763180043005,10.12251047,142.62,142.57,3.24]
[1763180043209,10.12251047,142.61,142.57,3.24]
[1763180043504,10.12251047,142.62,142.57,3.24]
[1763180043801,10.12251047,142.61,142.57,3.24]
[1763180044007,1.61958029,142.61,142.57,3.24]
[1763180046108,10.12251047,142.62,142.57,3.24]
[1763180046402,5.16392589,142.62,142.57,3.24]
[1763180047108,1.61958029,142.63,142.57,3.24]
[1763180047304,11.74209076,142.63,142.57,3.24]
[1763180047507,1.22049591,142.67,142.59,3.08]
[1763180047508,1.61958029,142.64,142.59,3.08]
[1763180047707,1.61958029,142.64,142.61,3.08]
[1763180048307,92.91183435,142.71,142.61,3.08]
[1763180048308,1.61958029,142.65,142.61,3.08]
[1763180048507,1.61958029,142.65,142.62,3.13170578]
[1763180049311,1.61958029,142.67,142.62,3.13170578]
[1763180052314,1.61958029,142.67,142.63,3.12]
[1763180052823,1.61958029,142.68,142.63,3.12]
[1763180053112,1.61958029,142.68,142.65,3.12]
[1763180053714,6.57816487,142.7,142.65,3.12]
[1763180054413,1.61958029,142.7,142.65,3.12]
[1763180056412,84.22,142.71,142.67,3.12]
[1763180056613,1.61958029,142.72,142.69,3.12]
[1763180058020,1.61958029,142.7,142.68,3.16766182]
[1763180058219,1.61958029,142.72,142.68,3.16766182]
[1763180058714,1.61958029,142.73,142.68,3.16766182]
[1763180058921,1.61958029,142.73,142.7,3.12]
[1763180059113,1.21944809,142.79,142.7,3.12]
[1763180059317,1.61958029,142.74,142.73,0.04850263]
[1763180059523,1.21944809,142.79,142.73,0.04850263]
[1763180059709,1.61958029,142.74,142.73,0.04850263]
[1763180060519,1.61958029,142.74,142.67,3.12]
[1763180060716,1.61958029,142.72,142.67,3.12]
[1763180061624,0.04716765,142.71,142.69,3.12]
[1763180061817,0.04687712,142.71,142.69,3.17356687]
[1763180064637,1.61958029,142.75,142.7,3.12]
[1763180065134,20.82765545,142.8,142.7,3.12]
[1763180065334,4.87259501,142.8,142.7,3.12]
[1763180065536,1.61958029,142.75,142.74,0.04992352]
[1763180065933,1.21927719,142.81,142.74,3.16992352]
[1763180066233,1.61958029,142.76,142.74,3.16992352]
[1763180066834,2.52109639,142.78,142.74,3.16992352]
[1763180069933,2.52109639,142.76,142.74,0.04992352]
[1763180072032,5.04219278,142.76,142.74,0.04992352]
[1763180078144,5.04219278,142.76,142.7,3.12]
[1763180078342,2.52109639,142.74,142.7,3.12]
[1763180079145,0.04428345,142.73,142.72,3.05]
[1763180079544,0.04428345,142.73,142.71,0.04932173]
[1763180079738,0.04428345,142.73,142.71,3.09932173]
[1763180082238,5.04219278,142.72,142.63,3.05]
[1763180082437,2.52109639,142.67,142.63,3.05]
[1763180083343,2.52109639,142.65,142.64,0.05169637]
[1763180083844,0.04823447,142.66,142.64,3.10169637]
[1763180085445,2.56933086,142.66,142.64,3.10169637]
[1763180085646,0.04823447,142.66,142.64,3.10169637]
[1763180085848,2.56933086,142.66,142.64,3.10169637]
[1763180086948,0.04823447,142.66,142.64,3.10169637]
[1763180099059,0.04823447,142.66,142.64,0.05169637]
[1763180100062,2.56933086,142.66,142.64,0.05169637]
[1763180100257,2.56933086,142.66,142.62,3.05]
[1763180100962,0.04823447,142.66,142.62,3.05]
[1763180101161,0.04823447,142.66,142.63,3.09784895]
[1763180108463,9.95893963,142.72,142.65,3.35]
[1763180108664,2.52109639,142.73,142.65,3.35]
[1763180108864,9.95893963,142.74,142.65,3.35]
[1763180109058,9.95893963,142.75,142.67,3.35]
[1763180109259,9.95893963,142.74,142.67,3.35]
[1763180109465,0.05290147,142.72,142.7,3.35]
[1763180111767,2.57399786,142.72,142.69,3.38389272]
[1763180115770,12.61003622,142.72,142.69,3.38389272]
[1763180116067,2.57399786,142.72,142.69,3.38389272]
[1763180116669,12.61003622,142.72,142.69,3.38389272]
[1763180116974,10.03603836,142.71,142.69,0.05389272]
[1763180117268,12.55713475,142.7,142.63,3.33]
[1763180117469,2.52109639,142.67,142.63,3.33]
[1763180118368,0.05147011,142.66,142.65,3.33]
[1763180131484,1.6670351,142.66,142.65,3.33]
[1763180132981,0.05147011,142.66,142.65,3.33]
[1763180133182,11.66293275,142.7,142.65,3.33]
[1763180133380,1.61556499,142.72,142.65,3.33]
[1763180133585,10.04768254,142.71,142.65,3.33]
[1763180133787,4.94441027,142.7,142.65,3.33]
[1763180133988,5.10212576,142.71,142.65,3.33]
[1763180134194,0.04977865,142.69,142.68,3.12]
[1763180143900,0.04977865,142.69,142.67,3.16876983]
[1763180144704,1.61556499,142.68,142.67,0.04876983]
[1763180146005,0.04977865,142.69,142.67,3.16876983]
[1763180147200,1.61556499,142.68,142.67,0.04876983]
[1763180147908,0.04977865,142.69,142.67,3.16876983]
[1763180148107,1.61556499,142.68,142.67,3.16876983]
[1763180149399,1.61556499,142.68,142.67,0.04876983]
[1763180151409,6.55155261,142.68,142.63,3.12]
[1763180151712,1.61556499,142.68,142.63,3.12]
[1763180152210,1.61556499,142.66,142.63,3.12]
[1763180152509,1.66636436,142.66,142.63,3.16806808]
[1763180154618,0.05079937,142.66,142.63,3.16806808]
[1763180177825,1.61556499,142.71,142.65,3.07]
[1763180178221,1.61556499,142.73,142.65,3.07]
[1763180178425,4.95244556,142.72,142.65,3.07]
[1763180178630,4.95244556,142.71,142.65,3.07]
[1763180178930,0.05060441,142.69,142.68,3.07]
[1763180179120,0.04945384,142.7,142.68,3.07]
[1763180181132,1.61556499,142.75,142.68,3.07]
[1763180181335,4.95189148,142.74,142.68,3.07]
[1763180181534,1.61556499,142.75,142.68,3.07]
[1763180181833,4.95201232,142.74,142.69,3.07]
[1763180182134,1.61556499,142.75,142.69,3.07]
[1763180182335,0.05258676,142.73,142.71,3.12130842]
[1763180182632,0.05289864,142.73,142.71,3.12130842]
[1763180199846,2.52173367,142.8,142.71,3.12130842]
[1763180199847,7.46631065,142.8,142.72,3.27]
[1763180200039,2.52173367,142.8,142.72,3.27]
[1763180201039,0.02028823,142.77,142.76,3.27]
[1763180201242,0.02028823,142.78,142.76,3.27]